bitfinex/quotes_SOLUSD_20250108
["timestamp","ask_amount","ask_price","bid_price","bid_amount"]
[1736356386457,20.0,192.49,192.36,23.776884]
[1736356387256,20.0,192.49,192.37,65.48072814]
[1736356387462,14.19189527,192.52,192.39,23.776884]
[1736356387654,14.19189527,192.52,192.39,65.48072814]
[1736356387868,14.19189527,192.52,192.41,41.70384414]
[1736356388067,14.19189527,192.52,192.42,23.776884]
[1736356388286,14.19189527,192.52,192.45,23.776884]
[1736356388483,14.19189527,192.52,192.46,23.776884]
[1736356388785,20.0,192.59,192.41,41.70384414]
[1736356389078,11.5544,192.62,192.43,41.70384414]
[1736356389245,11.5544,192.62,192.42,41.70384414]
[1736356389450,20.0,192.59,192.44,23.776884]
[1736356389853,20.0,192.59,192.34,4.13375215]
[1736356390196,20.0,192.57,192.36,41.70384414]
[1736356390479,1.27308734,192.56,192.35,41.70384414]
[1736356390653,21.27308734,192.56,192.35,41.70384414]
[1736356390855,21.27308734,192.56,192.38,41.70384414]
[1736356391059,1.27308734,192.56,192.39,41.70384414]
[1736356391266,1.27308734,192.56,192.4,41.70384414]
[1736356391471,1.27308734,192.56,192.39,41.70384414]
[1736356391650,1.27308734,192.56,192.38,41.70384414]
[1736356391857,1.27308734,192.56,192.39,23.776884]
[1736356392060,1.27308734,192.56,192.38,41.70384414]
[1736356392266,1.27308734,192.56,192.39,23.776884]
[1736356392457,1.27308734,192.56,192.37,23.776884]
[1736356392657,21.27308734,192.56,192.36,41.70384414]
[1736356392859,21.27308734,192.56,192.35,41.70384414]
[1736356393076,21.27308734,192.56,192.36,65.48072814]
[1736356393377,21.27308734,192.56,192.36,23.776884]
[1736356393587,1.27308734,192.56,192.36,65.48072814]
[1736356393882,1.27308734,192.56,192.39,23.776884]
[1736356394260,1.27308734,192.56,192.39,65.48072814]
[1736356394581,1.27308734,192.56,192.39,23.776884]
[1736356394773,1.27308734,192.56,192.39,65.48072814]
[1736356395073,1.27308734,192.56,192.37,41.70384414]
[1736356395275,1.27308734,192.56,192.38,23.776884]
[1736356395472,1.27308734,192.56,192.36,41.70384414]
[1736356395674,1.27308734,192.56,192.35,41.70384414]
[1736356395966,1.27308734,192.56,192.39,41.70384414]
[1736356396168,1.27308734,192.56,192.35,41.70384414]
[1736356396373,1.27308734,192.56,192.33,41.70384414]
[1736356396579,1.27308734,192.56,192.34,41.70384414]
[1736356397152,0.3563,192.52,192.3,41.70384414]
[1736356397355,0.3563,192.52,192.31,41.70384414]
[1736356397660,20.3563,192.52,192.31,41.70384414]
[1736356398066,0.3563,192.52,192.35,23.776884]
[1736356398264,0.3563,192.52,192.35,65.48072814]
[1736356398463,0.3563,192.52,192.37,65.48072814]
[1736356398665,0.3563,192.52,192.37,23.776884]
[1736356398865,0.3563,192.52,192.35,65.48072814]
[1736356399069,0.3563,192.52,192.37,23.776884]
[1736356399467,1.27308734,192.56,192.38,41.70384414]
[1736356399767,0.3563,192.59,192.41,65.48072814]
[1736356399953,0.3563,192.59,192.44,23.776884]
[1736356400158,0.3563,192.59,192.42,41.70384414]
[1736356400786,1.27308734,192.6,192.45,23.776884]
[1736356401159,20.0,192.58,192.43,41.70384414]
[1736356401479,1.27308734,192.6,192.42,41.70384414]
[1736356401659,4.903459,192.61,192.45,23.776884]
[1736356401863,4.903459,192.61,192.42,41.70384414]
[1736356402192,20.0,192.59,192.44,65.48072814]
[1736356402773,20.0,192.59,192.42,41.70384414]
[1736356402977,20.0,192.59,192.39,41.70384414]
[1736356403170,23.776884,192.58,192.38,41.70384414]
[1736356403374,23.776884,192.58,192.37,41.70384414]
[1736356403765,20.0,192.57,192.37,41.70384414]
[1736356403986,20.0,192.57,192.39,41.70384414]
[1736356404180,20.0,192.57,192.4,23.776884]
[1736356404381,20.0,192.58,192.4,65.48072814]
[1736356404585,20.0,192.58,192.41,23.776884]
[1736356404770,20.0,192.58,192.38,41.70384414]
[1736356405087,20.0,192.57,192.36,41.70384414]
[1736356405267,20.0,192.57,192.32,0.77929809]
[1736356405268,20.0,192.53,192.33,41.70384414]
[1736356405471,23.776884,192.48,192.3,41.70384414]
[1736356405684,20.0,192.49,192.3,41.70384414]
[1736356406178,20.0,192.43,192.18,41.70384414]
[1736356406384,20.0,192.41,192.18,41.70384414]
[1736356406576,20.0,192.39,192.2,41.70384414]
[1736356406764,20.0,192.39,192.24,41.70384414]
[1736356406968,11.5636,192.48,192.26,41.70384414]
[1736356407170,11.5636,192.48,192.27,41.70384414]
[1736356407371,20.0,192.44,192.27,41.70384414]
[1736356407565,20.0,192.44,192.27,42.48349988]
[1736356407783,20.0,192.44,192.3,23.776884]
[1736356407977,20.0,192.45,192.3,23.776884]
[1736356408287,20.0,192.45,192.28,23.776884]
[1736356408674,20.0,192.45,192.26,31.2]
[1736356409089,23.776884,192.44,192.22,41.70384414]
[1736356409271,23.776884,192.44,192.18,12.1557]
[1736356409272,23.776884,192.44,192.2,41.70384414]
[1736356409469,20.0,192.39,192.2,41.70384414]
[1736356409885,1.44969872,192.45,192.21,41.70384414]
[1736356410086,21.44969872,192.45,192.24,23.776884]
[1736356410280,21.44969872,192.45,192.26,23.776884]
[1736356410683,21.44969872,192.45,192.25,23.776884]
[1736356410876,21.44969872,192.45,192.24,23.776884]
[1736356411070,21.44969872,192.45,192.25,0.77975608]
[1736356411415,11.5636,192.48,192.28,23.776884]
[1736356411582,11.5636,192.48,192.25,41.70384414]
[1736356411781,11.5636,192.48,192.27,41.70384414]
[1736356412094,20.0,192.45,192.28,23.776884]
[1736356412393,20.0,192.45,192.27,23.776884]
[1736356413105,20.0,192.45,192.26,23.776884]
[1736356413867,20.0,192.45,192.25,23.776884]
[1736356414289,20.0,192.45,192.23,23.776884]
[1736356414476,20.0,192.45,192.22,41.70384414]
[1736356415217,20.0,192.45,192.23,23.776884]
[1736356415586,20.0,192.45,192.25,23.776884]
[1736356415788,20.0,192.45,192.25,24.55662567]
[1736356416209,20.0,192.45,192.27,23.776884]
[1736356416910,11.5636,192.48,192.32,23.776884]
[1736356417118,11.5636,192.48,192.33,23.776884]
[1736356417293,11.42649902,192.48,192.3,42.48342111]
[1736356417478,11.42649902,192.48,192.31,23.776884]
[1736356417680,11.42649902,192.48,192.3,23.776884]
[1736356418006,20.0,192.45,192.32,23.776884]
[1736356418310,20.0,192.45,192.26,41.70384414]
[1736356418489,20.0,192.45,192.28,65.48072814]
[1736356418812,20.0,192.45,192.3,41.70384414]
[1736356419020,20.0,192.45,192.32,23.776884]
[1736356419225,11.42649902,192.48,192.32,65.48072814]
[1736356419394,11.42649902,192.48,192.34,23.776884]
[1736356419587,11.42649902,192.48,192.29,41.70384414]
[1736356419798,11.42649902,192.48,192.31,41.70384414]
[1736356420311,11.42649902,192.48,192.32,41.70384414]
[1736356420601,11.42649902,192.48,192.33,41.70384414]
[1736356420806,11.42649902,192.48,192.32,42.48326771]
[1736356421104,11.42649902,192.48,192.32,23.776884]
[1736356421408,11.42649902,192.48,192.3,41.70384414]
[1736356421579,11.42649902,192.48,192.31,42.48333889]
[1736356421782,20.0,192.45,192.31,42.48333889]
[1736356421983,20.0,192.45,192.32,23.776884]
[1736356422203,20.0,192.45,192.32,65.48072814]
[1736356422420,20.0,192.45,192.33,23.776884]
[1736356422710,13.69114883,192.49,192.35,54.976884]
[1736356422905,13.69114883,192.49,192.38,41.70384414]
[1736356423213,13.69114883,192.49,192.39,41.70384414]
[1736356423400,11.4265,192.55,192.4,66.25987084]
[1736356423706,14.17689168,192.68,192.46,23.776884]
[1736356423916,1.59631611,192.67,192.46,65.48072814]
[1736356424099,1.59631611,192.67,192.48,23.776884]
[1736356424409,1.59631611,192.67,192.51,23.776884]
[1736356424602,11.9957,192.68,192.53,23.776884]
[1736356424798,11.4265,192.68,192.53,42.48255091]
[1736356425110,11.4265,192.68,192.54,41.70384414]
[1736356425287,13.90775883,192.69,192.57,65.48072814]
[1736356425499,20.794807,192.73,192.59,41.70384414]
[1736356425684,19.06359823,192.75,192.6,65.48072814]
[1736356425882,19.06359823,192.75,192.62,23.776884]
[1736356426299,11.4265,192.75,192.57,41.70384414]
[1736356426506,11.4265,192.75,192.58,41.70384414]
[1736356426691,11.4265,192.75,192.59,42.48222406]
[1736356426893,20.0,192.72,192.6,23.776884]
[1736356427113,20.0,192.72,192.6,65.48072814]
[1736356427299,20.0,192.72,192.59,42.48219336]
[1736356427612,11.4265,192.75,192.59,41.70384414]
[1736356427918,11.4265,192.75,192.6,23.776884]
[1736356428114,20.0,192.72,192.58,23.776884]
[1736356428409,20.0,192.72,192.52,42.48226761]
[1736356428608,20.0,192.72,192.55,41.70384414]
[1736356428808,20.0,192.72,192.56,41.70384414]
[1736356428999,20.0,192.72,192.55,41.70384414]
[1736356429202,20.0,192.72,192.56,23.776884]
[1736356429433,20.0,192.72,192.56,65.48072814]
[1736356429605,20.0,192.72,192.56,23.776884]
[1736356429909,20.0,192.72,192.54,41.70384414]
[1736356430088,20.0,192.72,192.54,42.4824087]
[1736356430289,20.0,192.72,192.55,23.776884]
[1736356430490,20.0,192.72,192.52,41.70384414]
[1736356430705,20.0,192.72,192.52,42.48247212]
[1736356430918,20.0,192.72,192.48,54.99774414]
[1736356431219,20.0,192.71,192.49,0.77879419]
[1736356431513,11.4265,192.75,192.49,0.77879419]
[1736356431514,20.0,192.7,192.52,41.70384414]
[1736356431688,20.0,192.7,192.52,23.776884]
[1736356432112,20.0,192.7,192.48,0.77870839]
[1736356432293,20.0,192.7,192.48,42.48255253]
[1736356432605,1.85539244,192.71,192.48,42.48255253]
[1736356432805,1.85539244,192.71,192.49,41.70384414]
[1736356433020,1.85539244,192.71,192.5,0.77876279]
[1736356433225,1.85539244,192.71,192.52,23.776884]
[1736356433521,13.58355418,192.75,192.52,23.776884]
[1736356433522,11.4265,192.75,192.55,23.776884]
[1736356433887,14.71647572,192.75,192.53,41.70384414]
[1736356434115,20.0,192.72,192.55,23.776884]
[1736356434314,20.0,192.72,192.51,41.70384414]
[1736356434529,20.0,192.72,192.52,23.776884]
[1736356434707,20.0,192.72,192.48,0.77875974]
[1736356434898,2.42459244,192.71,192.45,0.778803]
[1736356435099,2.42459244,192.71,192.49,23.776884]
[1736356435331,2.42459244,192.71,192.51,23.776884]
[1736356435925,2.42459244,192.71,192.47,42.48256459]
[1736356436125,2.42459244,192.71,192.47,62.48256459]
[1736356436439,20.0,192.67,192.44,88.52384414]
[1736356436601,20.0,192.67,192.45,0.7787898]
[1736356436804,21.85539244,192.67,192.45,0.7787898]
[1736356437000,21.85539244,192.67,192.45,42.48263394]
[1736356437329,21.85539244,192.67,192.46,31.2]
[1736356437764,21.85539244,192.67,192.46,72.90384414]
[1736356438052,21.85539244,192.67,192.46,31.2]
[1736356438273,1.85539244,192.67,192.48,23.776884]
[1736356438556,4.55927101,192.71,192.5,65.48072814]
[1736356439041,2.42459244,192.71,192.52,23.776884]
[1736356439243,1.85539244,192.7,192.5,31.2]
[1736356439546,1.85539244,192.7,192.51,23.776884]
[1736356439926,1.85539244,192.7,192.47,41.70384414]
[1736356440140,1.85539244,192.7,192.46,73.68268871]
[1736356440345,1.85539244,192.7,192.48,41.70384414]
[1736356440650,1.85539244,192.7,192.52,2.0]
[1736356440833,20.0,192.67,192.52,2.0]
[1736356441738,21.85539244,192.67,192.52,2.0]
[1736356442444,20.0,192.63,192.39,45.19094414]
[1736356442648,20.0,192.63,192.39,3.4871]
[1736356442843,1.85539244,192.62,192.39,3.4871]
[1736356443363,1.85539244,192.62,192.46,23.776884]
[1736356443528,11.4265,192.66,192.46,66.25960397]
[1736356443931,11.4265,192.66,192.46,55.75575983]
[1736356444125,20.0,192.63,192.41,41.70384414]
[1736356444427,20.0,192.63,192.41,0.77901847]
[1736356444630,2.03195652,192.62,192.36,0.77910046]
[1736356444850,2.03195652,192.62,192.35,0.7791564]
[1736356445156,20.0,192.57,192.35,0.7791564]
[1736356445331,25.0,192.57,192.32,78.77937029]
[1736356445534,2.24984411,192.56,192.32,46.8]
[1736356445737,20.0,192.5,192.33,23.776884]
[1736356446048,20.0,192.48,192.21,0.77952277]
[1736356446367,22.24984411,192.48,192.22,54.976884]
[1736356446572,20.0,192.44,192.23,0.77979527]
[1736356447128,13.67634411,192.47,192.27,41.70384414]
[1736356447334,11.4265,192.47,192.29,23.776884]
[1736356447533,11.4265,192.47,192.31,23.776884]
[1736356447740,20.0,192.44,192.27,0.77952008]
[1736356447952,20.0,192.44,192.26,0.77967252]
[1736356448254,20.0,192.44,192.27,23.776884]
[1736356448442,20.0,192.44,192.24,0.77976119]
[1736356449061,20.0,192.44,192.23,0.7797474]
[1736356450153,20.0,192.44,192.24,23.776884]
[1736356450355,20.0,192.44,192.19,42.48364761]
[1736356450668,22.24984411,192.43,192.18,41.70384414]
[1736356450833,0.572,192.42,192.18,0.78000038]
[1736356451036,20.572,192.42,192.18,0.78000038]
[1736356451261,2.24984411,192.41,192.16,0.78001163]
[1736356451442,20.0,192.37,192.14,0.78001163]
[1736356451952,20.0,192.37,192.14,42.48385577]
[1736356452155,20.0,192.37,192.2,41.70384414]
[1736356452349,20.0,192.37,192.22,23.776884]
[1736356453257,20.0,192.37,192.24,23.776884]
[1736356453472,11.4265,192.4,192.19,41.70384414]
[1736356453844,11.4265,192.4,192.21,65.48072814]
[1736356454044,11.4265,192.4,192.26,65.48072814]
[1736356454547,11.4265,192.4,192.27,24.55656941]
[1736356454747,11.4265,192.4,192.3,23.776884]
[1736356454958,11.4265,192.48,192.3,66.26032753]
[1736356455161,20.0,192.45,192.3,66.26032753]
[1736356455355,20.0,192.45,192.3,24.55648339]
[1736356455569,20.0,192.45,192.28,41.70384414]
[1736356455768,20.0,192.45,192.3,23.776884]
[1736356455968,20.0,192.45,192.32,23.776884]
[1736356456153,11.4265,192.48,192.34,23.776884]
[1736356456459,11.4265,192.48,192.25,16.7117]
[1736356456460,11.4265,192.48,192.28,41.70384414]
[1736356456660,11.4265,192.48,192.28,0.779599]
[1736356456868,20.0,192.45,192.29,65.48072814]
[1736356457053,20.0,192.45,192.29,23.776884]
[1736356457447,20.0,192.45,192.2,46.70384414]
[1736356457448,20.0,192.45,192.24,42.4835276]
[1736356457650,40.0,192.45,192.24,42.4835276]
[1736356457851,40.0,192.45,192.2,0.77972761]
[1736356458052,5.0,192.42,192.17,46.86]
[1736356458247,16.4265,192.42,192.17,46.86]
[1736356458452,20.0,192.39,192.17,88.56384414]
[1736356458666,20.0,192.39,192.18,41.70384414]
[1736356458868,20.0,192.39,192.17,47.6400892]
[1736356459060,20.0,192.39,192.17,46.86]
[1736356459264,22.82184411,192.38,192.12,41.70384414]
[1736356459578,22.82184411,192.38,192.13,0.78020941]
[1736356459873,22.82184411,192.38,192.1,41.70384414]
[1736356459874,20.0,192.34,192.1,41.70384414]
[1736356460072,20.0,192.34,192.12,41.70384414]
[1736356460370,20.0,192.34,192.14,41.70384414]
[1736356460560,20.0,192.34,192.13,42.48406701]
[1736356460755,20.0,192.34,192.13,0.78022287]
[1736356460955,20.0,192.34,192.13,42.48406701]
[1736356461257,20.0,192.34,192.12,41.70384414]
[1736356461455,11.4265,192.37,192.18,41.70384414]
[1736356461783,11.4265,192.37,192.2,65.48072814]
[1736356461960,11.4265,192.37,192.16,41.70384414]
[1736356462167,20.0,192.34,192.13,41.70384414]
[1736356462477,20.0,192.34,192.11,41.70384414]
[1736356462649,20.0,192.34,192.12,0.78025048]
[1736356462650,22.24984411,192.34,192.12,0.78025048]
[1736356463172,22.24984411,192.34,192.11,0.78025539]
[1736356463380,20.0,192.3,192.04,0.7804318]
[1736356463548,20.0,192.3,192.04,42.48427594]
[1736356463754,2.24984411,192.29,192.05,41.70384414]
[1736356463945,2.24984411,192.29,192.06,0.78047347]
[1736356464158,22.24984411,192.29,192.04,41.70384414]
[1736356464357,2.24984411,192.29,192.05,0.7805775]
[1736356464564,2.24984411,192.29,192.06,41.70384414]
[1736356464778,2.24984411,192.29,192.09,41.70384414]
[1736356464977,2.24984411,192.29,192.05,41.70384414]
[1736356465163,2.24984411,192.29,192.05,42.48436742]
[1736356465362,2.24984411,192.29,192.05,0.78052328]
[1736356465754,2.24984411,192.29,192.06,65.48072814]
[1736356465953,2.24984411,192.29,192.08,65.48072814]
[1736356466158,2.24984411,192.29,192.09,42.48422479]
[1736356466353,2.24984411,192.29,192.1,23.776884]
[1736356466661,2.24984411,192.29,192.06,0.78036576]
[1736356466861,2.24984411,192.29,192.07,23.776884]
[1736356467076,2.24984411,192.29,192.06,0.78036576]
[1736356467077,20.0,192.24,192.02,0.78046591]
[1736356467770,20.0,192.18,192.01,5.0]
[1736356468169,0.572,192.17,192.01,5.0]
[1736356468877,20.0,192.16,192.01,5.0]
[1736356469073,11.4265,192.16,192.01,5.0]
[1736356469273,20.0,192.14,192.01,4.428]
[1736356469456,20.0,192.1,192.01,4.428]
[1736356469658,5.0,192.12,192.01,4.428]
[1736356469877,2.24984411,192.1,192.01,3.261e-05]
[1736356470054,7.24984411,192.1,192.0,3.261e-05]
[1736356470259,20.0,192.09,191.97,2.50693261]
[1736356470456,2.24984411,192.09,191.97,0.42073261]
[1736356470760,20.0,192.03,191.97,0.42073261]
[1736356471256,20.0,192.05,191.97,0.42073261]
[1736356471589,22.24984411,192.04,191.97,0.42073261]
[1736356471759,11.4265,192.03,191.97,0.42073261]
[1736356472457,20.0,192.0,191.97,0.42073261]
[1736356472678,11.4265,192.03,191.97,0.42073261]
[1736356473259,11.4265,192.11,191.97,0.42073261]
[1736356473859,11.4265,192.11,192.0,41.70384414]
[1736356474061,11.4265,192.21,192.0,41.70384414]
[1736356474279,11.4265,192.21,191.97,42.12457675]
[1736356474584,11.4265,192.21,192.03,41.70384414]
[1736356474883,11.4265,192.21,192.06,41.70384414]
[1736356475363,11.4265,192.21,192.09,23.776884]
[1736356475571,4.00067797,192.28,192.1,41.70384414]
[1736356475775,4.00067797,192.28,192.11,65.48072814]
[1736356475967,4.00067797,192.28,192.13,23.776884]
[1736356476162,4.00067797,192.28,192.13,41.70384414]
[1736356476368,11.4265,192.29,192.15,23.776884]
[1736356476564,4.00067797,192.32,192.15,41.70384414]
[1736356476767,4.00067797,192.32,192.17,23.776884]
[1736356476974,4.00067797,192.32,192.13,41.70384414]
[1736356477185,4.00067797,192.32,192.15,41.70384414]
[1736356477367,4.00067797,192.32,192.16,41.70384414]
[1736356477572,4.00067797,192.32,192.19,23.776884]
[1736356477782,4.00067797,192.32,192.2,23.776884]
[1736356477979,11.4265,192.38,192.23,23.776884]
[1736356478181,11.4265,192.38,192.23,65.48072814]
[1736356478372,20.0,192.35,192.22,41.70384414]
[1736356478699,11.4265,192.38,192.25,23.776884]
[1736356479064,11.4265,192.38,192.26,23.776884]
[1736356479375,20.0,192.45,192.27,41.70384414]
[1736356479575,20.0,192.45,192.28,23.776884]
[1736356479768,20.0,192.45,192.28,65.48072814]
[1736356480088,20.0,192.45,192.3,23.776884]
[1736356480289,20.0,192.45,192.35,41.70384414]
[1736356480596,20.0,192.45,192.4,41.70384414]
[1736356480905,11.4265,192.55,192.42,41.70384414]
[1736356481109,56.05725974,192.66,192.43,41.70384414]
[1736356481274,11.4265,192.65,192.44,23.776884]
[1736356481470,5.0,192.62,192.35,0.77933044]
[1736356481674,5.0,192.58,192.37,41.70384414]
[1736356481881,5.0,192.61,192.36,41.70384414]
[1736356482189,20.0,192.56,192.36,23.776884]
[1736356482375,5.0,192.57,192.38,23.776884]
[1736356482376,20.0,192.57,192.38,23.776884]
[1736356482773,20.0,192.57,192.37,23.776884]
[1736356482977,20.0,192.55,192.37,23.776884]
[1736356483301,20.0,192.55,192.38,23.776884]
[1736356483503,20.0,192.55,192.34,41.70384414]
[1736356483805,20.0,192.54,192.38,41.70384414]
[1736356484006,20.822058,192.61,192.39,65.48072814]
[1736356484181,35.0,192.58,192.35,65.48072814]
[1736356484388,5.0,192.55,192.32,41.70384414]
[1736356484594,5.0,192.51,192.27,41.70384414]
[1736356484793,25.0,192.47,192.25,41.70384414]
[1736356484976,20.0,192.47,192.25,41.70384414]
[1736356485182,20.0,192.46,192.25,41.70384414]
[1736356485383,20.0,192.46,192.26,41.70384414]
[1736356485703,11.4265,192.5,192.31,41.70384414]
[1736356485903,11.4265,192.5,192.34,23.776884]
[1736356486077,11.4265,192.5,192.36,41.70384414]
[1736356486482,11.4265,192.5,192.32,41.70384414]
[1736356486685,28.776884,192.49,192.26,41.70384414]
[1736356486887,58.776884,192.49,192.26,41.70384414]
[1736356487095,20.0,192.46,192.28,23.776884]
[1736356487287,20.0,192.45,192.26,41.70384414]
[1736356487590,20.0,192.43,192.23,41.70384414]
[1736356487902,20.0,192.43,192.24,41.70384414]
[1736356488101,20.0,192.39,192.15,0.78014301]
[1736356488417,20.0,192.37,192.21,41.70384414]
[1736356488796,5.0,192.43,192.21,41.70384414]
[1736356489181,20.0,192.38,192.18,41.70384414]
[1736356489379,20.0,192.38,192.17,41.70384414]
[1736356489582,20.0,192.38,192.19,41.70384414]
[1736356489809,5.0,192.42,192.21,23.776884]
[1736356490122,5.0,192.41,192.21,41.70384414]
[1736356490421,20.0,192.4,192.21,65.48072814]
[1736356490595,20.0,192.4,192.23,23.776884]
[1736356490781,20.0,192.4,192.2,41.70384414]
[1736356490981,20.0,192.36,192.2,41.70384414]
[1736356491178,20.0,192.36,192.22,23.776884]
[1736356491418,35.0,192.39,192.17,41.70384414]
[1736356491619,35.0,192.39,192.12,15.9569]
[1736356491620,20.0,192.35,192.16,41.70384414]
[1736356491805,20.0,192.31,192.04,12.2402]
[1736356491982,20.0,192.29,192.09,41.70384414]
[1736356492489,20.0,192.31,192.11,41.70384414]
[1736356492693,20.0,192.31,192.12,41.70384414]
[1736356492897,20.0,192.31,192.12,65.48072814]
[1736356493125,20.0,192.31,192.15,50.78307501]
[1736356493429,20.0,192.31,192.18,50.78307501]
[1736356493635,20.0,192.31,192.17,50.78307501]
[1736356494140,20.0,192.31,192.15,50.78307501]
[1736356494309,20.0,192.31,192.14,50.78307501]
[1736356494504,35.0,192.32,192.1,50.78307501]
[1736356494701,21.4265,192.34,192.11,23.776884]
[1736356494902,20.0,192.31,192.11,50.78307501]
[1736356495117,20.0,192.31,192.13,50.78307501]
[1736356496009,20.0,192.29,192.12,50.78307501]
[1736356496215,20.0,192.25,192.03,3.5279]
[1736356496406,20.0,192.25,192.0,46.86]
[1736356496407,20.0,192.21,192.02,50.78307501]
[1736356496611,20.0,192.21,192.01,50.78307501]
[1736356496999,20.0,192.16,192.01,50.78307501]
[1736356497201,20.0,192.16,192.0,23.776884]
[1736356497526,20.0,192.16,192.0,50.78307501]
[1736356497702,20.0,192.16,191.97,51.20380762]
[1736356497905,20.0,192.12,191.99,50.78307501]
[1736356498099,20.0,192.12,192.03,74.55995901]
[1736356498406,20.0,192.12,192.04,50.78307501]
[1736356498607,20.0,192.12,192.04,23.776884]
[1736356498817,20.0,192.12,192.04,74.55995901]
[1736356499025,20.0,192.12,192.01,50.78307501]
[1736356499201,20.0,192.12,192.03,50.78307501]
[1736356499407,20.0,192.12,191.97,0.42073261]
[1736356499607,20.0,192.12,192.01,50.78307501]
[1736356499824,20.0,192.12,192.0,50.78307501]
[1736356500014,20.0,192.12,192.02,50.78307501]
[1736356500201,20.0,192.12,192.05,23.776884]
[1736356500408,20.0,192.12,192.05,74.55995901]
[1736356500611,20.864539,192.15,192.07,50.78307501]
[1736356500811,11.4265,192.19,192.05,50.78307501]
[1736356501014,20.856885,192.14,192.05,50.78307501]
[1736356501237,20.0,192.11,192.06,50.78307501]
[1736356501418,20.0,192.11,192.05,50.78307501]
[1736356501620,20.0,192.11,192.06,23.776884]
[1736356501831,20.0,192.15,192.06,23.776884]
[1736356502013,20.856827,192.18,192.1,23.776884]
[1736356502214,11.4265,192.26,192.14,23.776884]
[1736356502413,20.847883,192.25,192.14,23.776884]
[1736356502712,20.847883,192.25,192.04,17.5734]
[1736356502713,20.0,192.22,192.1,50.78307501]
[1736356502919,20.847883,192.25,192.11,50.78307501]
[1736356503113,20.847883,192.25,192.13,50.78307501]
[1736356503315,20.847883,192.25,192.16,74.55995901]
[1736356503630,13.371216,192.27,192.04,12.5734]
[1736356503831,34.217617,192.27,192.09,50.78307501]
[1736356504332,20.0,192.24,192.09,23.776884]
[1736356504632,25.0,192.24,192.0,50.78307501]
[1736356504811,20.0,192.23,192.0,50.78307501]
[1736356505011,64.217617,192.27,192.03,50.78307501]
[1736356505226,64.217617,192.27,192.07,50.78307501]
[1736356505227,34.217617,192.27,192.07,50.78307501]
[1736356505425,34.217617,192.27,192.09,50.78307501]
[1736356505649,34.217617,192.27,192.13,50.78307501]
[1736356505934,34.217617,192.27,192.15,74.55995901]
[1736356506133,34.217617,192.27,192.14,50.78307501]
[1736356506310,34.217617,192.27,192.17,50.78307501]
[1736356506725,13.371216,192.27,192.14,50.78307501]
[1736356506930,13.371216,192.27,192.16,50.78307501]
[1736356507118,13.371216,192.27,192.17,50.78307501]
[1736356507331,13.371216,192.27,192.18,23.776884]
[1736356507538,20.0,192.24,192.15,50.78307501]
[1736356507734,13.371216,192.27,192.16,23.776884]
[1736356507918,20.0,192.24,192.13,50.78307501]
[1736356508124,20.0,192.24,192.14,23.776884]
[1736356508332,20.0,192.24,192.1,54.41117501]
[1736356508719,13.371216,192.27,192.16,74.55995901]
[1736356508938,13.371216,192.27,192.13,50.78307501]
[1736356509236,20.0,192.24,192.13,50.78307501]
[1736356509542,20.0,192.24,192.12,50.78307501]
[1736356509719,20.0,192.24,192.1,54.41117501]
[1736356510118,20.0,192.24,192.11,50.78307501]
[1736356510331,20.0,192.24,192.12,23.776884]
[1736356510839,20.0,192.24,192.13,74.55995901]
[1736356511052,20.0,192.24,192.1,3.6281]
[1736356511260,20.0,192.24,192.08,50.78307501]
[1736356511731,20.0,192.24,192.1,50.78307501]
[1736356511918,20.0,192.24,192.11,50.78307501]
[1736356512125,20.0,192.24,192.06,50.78307501]
[1736356512316,20.0,192.24,192.03,54.12427501]
[1736356512745,20.0,192.24,192.06,50.78307501]
[1736356512952,20.0,192.24,192.07,50.78307501]
[1736356513152,20.0,192.24,192.05,50.78307501]
[1736356513341,20.0,192.24,192.06,50.78307501]
[1736356513769,20.0,192.24,192.07,50.78307501]
[1736356514055,20.0,192.24,192.1,23.776884]